bitfinex-derivatives/quotes_SOLF0:USTF0_20250820
["timestamp","ask_amount","ask_price","bid_price","bid_amount"]
[1755695166818,3.09399782,181.36,181.31,3.1]
[1755695167028,5.7535,181.35,181.31,3.1]
[1755695167316,0.24,181.35,181.31,8.6142]
[1755695167516,0.24,181.35,181.26,3.1]
[1755695168123,5.5141,181.33,181.26,3.1]
[1755695169916,3.09399782,181.36,181.3,5.5145]
[1755695170122,0.24,181.33,181.3,5.5145]
[1755695170523,3.09399782,181.36,181.31,5.5143]
[1755695170823,0.24,181.35,181.31,8.6143]
[1755695171025,5.5137,181.34,181.31,8.6143]
[1755695171219,3.09399782,181.36,181.25,6.0850335]
[1755695171220,3.09399782,181.36,181.32,8.6141]
[1755695171624,3.33399782,181.36,181.32,8.6141]
[1755695171934,0.24,181.35,181.31,5.5143]
[1755695172228,0.24,181.35,181.28,3.1]
[1755695172626,5.7532,181.35,181.32,5.5139]
[1755695172930,0.24,181.35,181.28,3.1]
[1755695173626,5.514,181.33,181.3,5.5145]
[1755695174223,5.5136,181.34,181.31,5.5143]
[1755695174425,3.33399782,181.36,181.29,3.1]
[1755695174727,8.84699782,181.36,181.29,3.1]
[1755695174929,3.33399782,181.39,181.29,3.1]
[1755695175226,0.24,181.38,181.29,3.1]
[1755695175429,5.7534,181.35,181.32,5.514]
[1755695177131,5.5136,181.34,181.31,5.5142]
[1755695177523,5.5136,181.34,181.26,6.0850335]
[1755695177828,0.24,181.39,181.32,3.1]
[1755695178026,3.33399782,181.39,181.32,3.1]
[1755695178232,5.513,181.36,181.33,5.5136]
[1755695178433,5.753,181.36,181.33,5.5136]
[1755695178826,5.5131,181.35,181.33,5.5136]
[1755695179026,5.5131,181.35,181.32,8.6139]
[1755695179933,5.5131,181.35,181.33,5.5136]
[1755695181139,5.7528,181.36,181.33,5.5136]
[1755695182030,5.7528,181.36,181.32,3.1]
[1755695182031,5.5122,181.38,181.35,5.5129]
[1755695182227,5.5122,181.38,181.34,3.1]
[1755695182228,3.33399782,181.42,181.3,3.1]
[1755695182537,0.24,181.41,181.3,3.1]
[1755695182838,5.5124,181.38,181.35,5.5129]
[1755695183433,5.512,181.39,181.36,3.1]
[1755695183631,0.24,181.41,181.36,3.1]
[1755695183833,0.24,181.4,181.36,3.1]
[1755695184229,5.7521,181.39,181.36,5.5127]
[1755695185935,5.5122,181.38,181.36,5.5127]
[1755695186138,0.24,181.39,181.35,5.513]
[1755695186533,3.09399782,181.42,181.35,5.513]
[1755695186733,0.23,181.38,181.3,3.07]
[1755695187136,5.5126,181.37,181.3,3.07]
[1755695187330,5.5126,181.37,181.34,5.5132]
[1755695187535,5.5126,181.37,181.34,3.07]
[1755695188335,5.5126,181.37,181.34,8.5833]
[1755695188736,5.5126,181.37,181.34,3.07]
[1755695189132,5.5126,181.37,181.34,8.5833]
[1755695189542,5.5126,181.37,181.31,3.07]
[1755695189744,5.5126,181.37,181.34,5.5133]
[1755695190452,5.7426,181.37,181.34,5.5133]
[1755695190754,5.5128,181.36,181.33,8.5836]
[1755695191453,5.5126,181.37,181.34,8.5833]
[1755695193444,3.32399782,181.42,181.3,3.09399782]
[1755695193647,0.23,181.42,181.38,3.07]
[1755695193854,5.5114,181.41,181.38,8.582]
[1755695194646,123.59037972,181.46,181.33,3.09399782]
[1755695194647,123.82037972,181.46,181.33,3.09399782]
[1755695194849,123.82037972,181.46,181.34,3.07]
[1755695195255,123.82037972,181.46,181.33,3.09399782]
[1755695195256,5.5108,181.43,181.4,8.5814]
[1755695195854,5.5103,181.45,181.42,3.07]
[1755695196557,5.5104,181.44,181.42,3.07]
[1755695196754,0.23,181.44,181.38,3.07]
[1755695197455,5.5108,181.43,181.4,3.07]
[1755695197955,5.511,181.42,181.4,3.07]
[1755695198158,5.741,181.42,181.36,3.07]
[1755695198655,3.09399782,181.45,181.36,3.07]
[1755695198853,5.5107,181.43,181.36,3.07]
[1755695199362,5.5107,181.43,181.39,5.5116]
[1755695199565,5.5107,181.43,181.4,3.07]
[1755695199748,5.511,181.42,181.35,3.07]
[1755695199952,3.32399782,181.45,181.38,5.512]
[1755695200250,3.32399782,181.45,181.35,3.07]
[1755695200251,5.5112,181.42,181.35,3.07]
[1755695200554,3.32399782,181.45,181.39,5.5116]
[1755695201759,5.5109,181.43,181.41,3.07]
[1755695202153,123.59037972,181.46,181.41,3.07]
[1755695202359,5.5102,181.45,181.42,8.5808]
[1755695202958,123.59037972,181.46,181.43,3.07]
[1755695203363,5.5101,181.45,181.37,3.09399782]
[1755695203565,5.5101,181.45,181.38,3.07]
[1755695204062,0.23,181.55,181.38,3.07]
[1755695204268,0.23,181.51,181.38,3.07]
[1755695204565,0.23,181.51,181.44,5.5101]
[1755695205163,5.5093,181.48,181.45,5.5099]
[1755695205566,5.5093,181.48,181.45,8.5799]
[1755695206066,5.5094,181.47,181.45,3.07]
[1755695207067,5.5094,181.47,181.37,3.09399782]
[1755695207365,5.5094,181.47,181.38,3.07]
[1755695207566,3.09399782,181.52,181.42,5.5107]
[1755695207567,0.23,181.46,181.42,5.5107]
[1755695207763,0.23,181.48,181.39,3.07]
[1755695208068,147.5747,181.54,181.39,3.07]
[1755695208069,0.23,181.45,181.39,3.07]
[1755695208269,5.5111,181.42,181.39,8.5817]
[1755695209966,5.5111,181.42,181.39,3.07]
[1755695210967,5.5111,181.42,181.39,8.5818]
[1755695211369,3.32399782,181.49,181.36,3.09399782]
[1755695211569,0.23,181.49,181.37,3.07]
[1755695211968,5.5096,181.47,181.37,3.07]
[1755695212368,0.23,181.49,181.37,3.07]
[1755695212560,0.23,181.48,181.37,3.07]
[1755695212966,5.5101,181.45,181.42,3.07]
[1755695213269,0.23,181.48,181.42,3.07]
[1755695213472,5.51,181.46,181.42,8.5808]
[1755695213975,5.74,181.46,181.42,8.5808]
[1755695214363,5.5095,181.47,181.36,3.09399782]
[1755695214671,3.09399782,181.49,181.37,3.07]
[1755695214867,5.5093,181.48,181.44,5.5101]
[1755695215073,5.5093,181.48,181.44,8.5801]
[1755695215372,3.09399782,181.49,181.43,5.5105]
[1755695215671,0.23,181.47,181.43,5.5105]
[1755695215871,5.51,181.46,181.43,5.5105]
[1755695216073,5.74,181.46,181.43,5.5105]
[1755695216470,5.5101,181.45,181.42,5.5109]
[1755695217671,3.32399782,181.49,181.43,3.07]
[1755695218166,5.5097,181.47,181.44,5.5103]
[1755695218372,5.7397,181.47,181.44,5.5103]
[1755695218572,5.5097,181.47,181.44,8.5803]
[1755695219468,5.5097,181.47,181.45,8.58]
[1755695219973,3.09399782,181.52,181.45,3.07]
[1755695220170,0.23,181.54,181.46,3.07]
[1755695220570,5.7371,181.55,181.51,5.5082]
[1755695221174,5.5073,181.54,181.51,8.5782]
[1755695221575,0.23,181.55,181.52,5.5078]
[1755695221971,5.507,181.56,181.46,3.07]
[1755695222170,3.09399782,181.58,181.53,3.07]
[1755695222369,370.67,181.59,181.53,3.07]
[1755695222571,136.48,181.61,181.56,5.5067]
[1755695222770,136.71,181.61,181.56,5.5067]
[1755695222968,136.48,181.61,181.56,5.5067]
[1755695223172,3.09399782,181.63,181.52,3.07]
[1755695223574,0.23,181.62,181.53,5.5075]
[1755695223769,0.23,181.59,181.46,3.07]
[1755695223972,3.09399782,181.57,181.46,3.07]
[1755695224166,0.23,181.57,181.46,3.07]
[1755695224669,5.5079,181.53,181.46,3.07]
[1755695224869,3.32399782,181.57,181.46,3.07]
[1755695225070,0.23,181.56,181.46,3.07]
[1755695225281,5.5082,181.52,181.46,3.07]
[1755695225471,0.23,181.56,181.46,3.07]
[1755695225671,5.5078,181.53,181.49,5.5086]
[1755695225868,0.23,181.56,181.45,3.07]
[1755695226872,5.508,181.52,181.48,5.5089]
[1755695227069,0.23,181.56,181.46,3.07]
[1755695227268,3.09399782,181.51,181.43,8.5804]
[1755695227479,0.23,181.46,181.39,3.07]
[1755695227872,3.09399782,181.48,181.39,3.07]
[1755695227873,5.7403,181.45,181.41,5.511]
[1755695228174,0.23,181.45,181.41,5.511]
[1755695228372,5.5104,181.44,181.4,5.5115]
[1755695228576,0.23,181.47,181.4,5.5115]
[1755695228780,0.23,181.47,181.39,3.07]
[1755695228980,3.09399782,181.48,181.43,5.5104]
[1755695229177,3.32399782,181.48,181.43,8.5804]
[1755695229379,5.5096,181.47,181.43,8.5804]
[1755695229677,3.32399782,181.48,181.43,3.07]
[1755695230275,0.23,181.47,181.39,3.07]
[1755695230673,5.5106,181.44,181.36,3.07]
[1755695230978,0.23,181.47,181.36,3.07]
[1755695231379,5.5102,181.45,181.42,5.5107]
[1755695231580,5.5102,181.45,181.36,3.07]
[1755695231875,0.23,181.47,181.4,3.07]
[1755695232269,5.5112,181.42,181.37,5.5124]
[1755695232470,5.7412,181.42,181.37,3.07]
[1755695233079,5.5113,181.41,181.37,3.07]
[1755695233274,3.09399782,181.45,181.38,3.07]
[1755695234077,3.32399782,181.45,181.4,8.5814]
[1755695234383,5.7406,181.44,181.4,8.5814]
[1755695235586,3.09399782,181.45,181.38,5.5119]
[1755695235779,3.09399782,181.45,181.32,3.09399782]
[1755695235780,0.23,181.43,181.36,3.07]
[1755695236182,5.511,181.42,181.36,3.07]
[1755695236377,5.511,181.42,181.38,8.5819]
[1755695236582,5.511,181.42,181.38,3.07]
[1755695236986,5.511,181.42,181.39,5.5116]
[1755695237181,5.7407,181.43,181.39,5.5116]
[1755695237882,0.23,181.48,181.42,3.07]
[1755695238090,0.23,181.47,181.36,3.07]
[1755695238389,5.5098,181.46,181.36,3.07]
[1755695238581,0.23,181.47,181.36,3.07]
[1755695239284,3.09399782,181.45,181.36,3.07]
[1755695239487,0.23,181.44,181.36,3.07]
[1755695239686,5.5111,181.42,181.38,3.07]
[1755695240492,5.5111,181.42,181.38,8.582]
[1755695242588,0.23,181.44,181.4,3.07]
[1755695242790,0.23,181.44,181.33,3.07]
[1755695243091,5.5107,181.43,181.39,8.5817]
[1755695243482,5.5107,181.43,181.39,5.5117]
[1755695243687,5.5107,181.43,181.4,8.5815]
[1755695243882,3.32399782,181.46,181.32,3.09399782]
[1755695244084,3.32399782,181.46,181.36,3.07]
[1755695244382,3.32399782,181.46,181.4,8.5814]
[1755695244579,5.5103,181.45,181.41,3.07]
[1755695244888,0.23,181.45,181.36,3.07]
[1755695245090,5.5105,181.44,181.36,3.07]
[1755695245292,0.23,181.45,181.39,5.5116]
[1755695246096,5.5107,181.43,181.4,8.5716]
[1755695246593,5.5104,181.44,181.4,8.5716]
[1755695247090,3.09399782,181.46,181.37,3.06]
[1755695247493,3.09399782,181.46,181.39,5.5116]
[1755695247687,5.5104,181.44,181.37,3.06]
[1755695247881,0.23,181.45,181.37,3.06]
[1755695248083,5.5109,181.43,181.39,5.5117]
[1755695248389,0.23,181.45,181.39,3.06]
[1755695248593,3.09399782,181.46,181.39,3.06]
[1755695248890,0.23,181.48,181.42,8.5709]
[1755695249089,0.23,181.48,181.42,3.06]
[1755695249292,0.23,181.48,181.36,3.06]
[1755695249885,5.5099,181.46,181.42,5.5109]
[1755695250091,0.23,181.46,181.39,3.06]
[1755695250387,3.32399782,181.46,181.39,3.06]
[1755695250891,5.5111,181.42,181.39,3.06]
[1755695251293,5.5111,181.42,181.39,8.5717]
[1755695251694,5.5111,181.42,181.39,3.06]
[1755695252083,5.5108,181.43,181.31,3.09399782]
[1755695252291,3.32399782,181.46,181.39,3.06]
[1755695252586,5.5109,181.43,181.4,3.06]
[1755695253485,5.5109,181.43,181.4,8.5714]
[1755695254095,5.5109,181.43,181.4,3.06]
[1755695254295,5.5111,181.42,181.4,3.06]
[1755695254588,3.32399782,181.46,181.4,3.06]
[1755695254589,3.32399782,181.46,181.4,8.5715]
[1755695254794,5.5105,181.44,181.4,8.5715]
[1755695254996,3.32399782,181.46,181.4,8.5715]
[1755695256201,0.23,181.46,181.41,5.5112]
[1755695256395,0.23,181.46,181.41,8.5712]
[1755695256796,0.23,181.45,181.41,8.5712]
[1755695257298,0.23,181.44,181.4,5.5115]
[1755695257598,0.23,181.44,181.4,8.5715]
[1755695257898,5.5108,181.43,181.4,8.5715]
[1755695258099,0.23,181.44,181.41,8.5712]
[1755695258301,0.23,181.44,181.41,3.06]
[1755695258494,5.5108,181.43,181.39,3.06]
[1755695258694,0.23,181.44,181.41,3.06]
[1755695259099,0.23,181.47,181.41,8.5712]
[1755695259295,0.23,181.47,181.41,3.06]
[1755695259697,5.5109,181.43,181.41,3.06]
[1755695259898,0.23,181.47,181.34,3.06]
[1755695260700,5.5108,181.43,181.34,3.06]
[1755695261605,5.5108,181.43,181.4,5.5114]
[1755695261900,5.511,181.42,181.34,3.06]
[1755695262898,5.5113,181.41,181.34,3.06]
[1755695263299,120.50275219,181.49,181.34,3.06]
[1755695263300,3.32399782,181.42,181.34,3.06]
[1755695263501,3.32399782,181.42,181.35,8.573]
[1755695263502,5.512,181.39,181.35,8.573]
[1755695263903,5.742,181.39,181.35,8.573]
[1755695264499,0.23,181.39,181.35,3.06]
[1755695264699,5.5117,181.4,181.37,3.06]
[1755695264894,0.23,181.43,181.38,3.06]
[1755695265403,3.09399782,181.45,181.38,3.06]
[1755695265599,3.09399782,181.45,181.32,3.06]
[1755695265800,3.09399782,181.45,181.3,370.26]
[1755695265801,0.23,181.46,181.35,3.06]
[1755695266006,5.5101,181.45,181.35,3.06]
[1755695266201,0.23,181.46,181.35,3.06]
[1755695266598,5.5109,181.43,181.35,3.06]
[1755695266995,0.23,181.46,181.35,3.06]
[1755695267203,5.7405,181.44,181.4,5.5114]
[1755695267405,0.23,181.47,181.38,3.06]
[1755695267603,5.5109,181.43,181.39,5.5118]
[1755695267804,5.7409,181.43,181.39,8.5718]
[1755695268106,5.511,181.42,181.39,8.5718]
[1755695268304,0.23,181.47,181.4,5.5114]
[1755695268505,0.23,181.47,181.39,3.06]
[1755695269012,5.5102,181.45,181.41,5.511]
[1755695269306,3.09399782,181.48,181.41,5.511]
[1755695269307,0.23,181.44,181.41,5.511]
[1755695269500,5.7404,181.44,181.4,5.5115]
[1755695269705,5.7404,181.44,181.4,8.5715]
[1755695269906,0.23,181.44,181.41,3.06]
[1755695270105,0.23,181.44,181.41,8.571]
[1755695270509,5.5102,181.45,181.41,3.06]
[1755695270710,5.5102,181.45,181.42,8.5708]
[1755695271012,5.7396,181.47,181.44,3.06]
[1755695271205,0.23,181.46,181.43,5.5105]
[1755695271404,0.23,181.45,181.43,5.5105]
[1755695272409,3.09399782,181.48,181.4,3.06]
[1755695272704,0.23,181.44,181.37,3.06]
[1755695273105,0.23,181.44,181.39,5.5118]
[1755695273307,0.23,181.43,181.35,3.06]
[1755695273699,5.7412,181.42,181.38,8.572]
[1755695273903,5.7412,181.42,181.38,3.06]
[1755695274104,5.7412,181.42,181.34,3.09399782]
[1755695274303,5.7412,181.42,181.38,3.06]
[1755695274498,5.5108,181.43,181.35,3.06]
[1755695274909,5.7408,181.43,181.35,3.06]
[1755695275207,5.5104,181.44,181.35,3.06]
[1755695277212,5.5107,181.43,181.35,3.06]
[1755695277611,5.5107,181.43,181.4,5.5113]
[1755695277810,5.7407,181.43,181.4,5.5113]
[1755695278005,5.7407,181.43,181.37,3.08]
[1755695278609,0.23,181.43,181.37,3.08]
[1755695279215,0.23,181.43,181.41,5.511]
[1755695279416,5.7407,181.43,181.41,5.511]
[1755695280413,0.23,181.41,181.33,3.08]
[1755695281117,5.7424,181.38,181.34,5.5132]
[1755695281315,0.23,181.37,181.34,5.5132]
[1755695281516,5.5125,181.37,181.33,8.5936]
[1755695281820,0.23,181.36,181.33,3.08]
[1755695282020,3.09399782,181.39,181.33,3.08]
[1755695282615,8.60589782,181.39,181.36,5.5127]
[1755695282916,3.09399782,181.41,181.36,3.08]
[1755695283126,0.23,181.36,181.3,3.08]
[1755695283317,0.23,181.4,181.3,3.08]
[1755695283819,5.512,181.39,181.3,3.08]
[1755695285727,5.512,181.39,181.36,5.5125]
[1755695285928,5.742,181.39,181.36,5.5125]
[1755695286128,5.7422,181.38,181.33,3.08]
[1755695286328,5.7422,181.38,181.29,82.30562712]
[1755695286329,0.23,181.38,181.3,3.08]
[1755695286626,0.23,181.38,181.36,5.5126]
[1755695288319,0.23,181.38,181.37,5.5125]
[1755695289629,0.23,181.37,181.32,3.08]
[1755695289825,0.23,181.37,181.33,3.08]
[1755695290022,5.743,181.36,181.32,5.5138]
[1755695290226,3.09399782,181.38,181.29,85.38562712]
[1755695290227,0.23,181.35,181.29,85.38562712]
[1755695290626,3.09399782,181.38,181.29,3.08]
[1755695290928,3.09399782,181.38,181.23,6.0850335]
[1755695290929,0.23,181.32,181.26,3.08]
[1755695291130,0.23,181.31,181.28,5.5151]
[1755695291530,0.23,181.3,181.28,5.5151]
[1755695292430,0.23,181.3,181.27,5.5154]
[1755695292632,0.23,181.3,181.26,3.08]
[1755695293032,0.23,181.29,181.26,3.08]
[1755695293832,0.23,181.29,181.27,5.5153]
[1755695294330,5.7444,181.31,181.26,3.08]
[1755695294528,3.32399782,181.35,181.22,3.08]
[1755695295133,0.23,181.34,181.31,3.08]
[1755695296626,5.5133,181.35,181.32,8.5939]
[1755695297230,8.83679782,181.36,181.33,5.5136]
[1755695297434,3.09399782,181.36,181.32,3.08]
[1755695297634,0.23,181.33,181.3,5.5144]
[1755695298128,0.23,181.35,181.3,5.5144]
[1755695298434,3.09399782,181.37,181.33,3.08]
[1755695298827,0.23,181.36,181.33,8.5936]
[1755695299023,0.23,181.36,181.33,5.5136]
[1755695299537,0.23,181.36,181.3,3.08]
[1755695300030,3.09399782,181.37,181.26,3.08]
[1755695300428,0.23,181.35,181.26,3.08]
[1755695300933,5.7432,181.35,181.31,5.5141]
[1755695301129,3.09399782,181.37,181.25,3.08]
[1755695301636,0.23,181.35,181.32,5.5137]
[1755695302234,0.23,181.35,181.33,5.5136]
[1755695302627,8.60659782,181.37,181.29,3.08]
[1755695302831,3.32399782,181.37,181.25,3.08]
[1755695303236,3.32399782,181.37,181.26,3.08]
[1755695303637,0.23,181.37,181.26,3.08]
[1755695303838,0.23,181.39,181.35,3.08]
[1755695304234,0.23,181.39,181.36,5.5126]
[1755695304434,0.23,181.39,181.35,3.08]
[1755695304826,0.23,181.39,181.37,5.5123]
[1755695305431,0.23,181.43,181.37,3.08]
[1755695305939,3.09399782,181.44,181.41,5.511]
[1755695306135,0.24,181.42,181.38,3.12]
[1755695306837,0.24,181.41,181.35,3.12]
[1755695307933,5.511,181.42,181.33,3.09399782]
[1755695308139,3.09399782,181.44,181.33,3.09399782]
[1755695308140,0.24,181.41,181.33,3.12]
[1755695308531,5.5116,181.4,181.36,5.5126]
[1755695308730,0.24,181.39,181.36,5.5126]
[1755695309133,0.24,181.39,181.37,5.5125]
[1755695309431,5.5114,181.41,181.33,3.12]
[1755695309837,0.24,181.43,181.37,5.5122]
[1755695310034,0.24,181.43,181.33,3.12]
[1755695310236,3.33399782,181.41,181.33,3.12]
[1755695311037,0.24,181.37,181.27,3.12]
[1755695311528,5.5131,181.35,181.31,5.5141]
[1755695311735,0.24,181.34,181.31,5.5141]
[1755695312034,5.7534,181.34,181.3,5.5144]
[1755695312433,0.24,181.34,181.27,3.12]
[1755695312639,3.33399782,181.38,181.27,3.12]
[1755695313139,5.5127,181.37,181.26,136.44]
[1755695313335,3.09399782,181.38,181.3,3.12]
[1755695313635,3.09399782,181.38,181.34,5.5131]
[1755695313636,5.5122,181.38,181.34,5.5131]
[1755695313843,0.24,181.37,181.34,5.5131]
[1755695314042,0.24,181.4,181.3,3.12]
[1755695314242,5.5125,181.37,181.33,5.5135]
[1755695314541,0.24,181.36,181.33,5.5135]
[1755695315139,0.24,181.35,181.33,5.5135]
[1755695315337,3.09399782,181.38,181.3,3.12]
[1755695315539,0.24,181.37,181.3,3.12]
[1755695316337,5.7532,181.35,181.3,3.12]
[1755695316741,5.5128,181.37,181.33,5.5135]
[1755695317045,5.7528,181.37,181.3,3.12]
[1755695317643,5.7528,181.37,181.32,3.12]
[1755695318041,5.7529,181.36,181.32,3.12]
[1755695318445,5.7533,181.35,181.28,3.12]
[1755695318639,3.33399782,181.35,181.28,3.12]
[1755695319039,5.7539,181.33,181.28,3.12]
[1755695319644,0.24,181.32,181.29,5.5147]
[1755695320446,3.09399782,181.35,181.25,3.12]
[1755695320447,0.24,181.31,181.25,3.12]
[1755695320941,0.24,181.31,181.28,5.515]
[1755695321546,0.24,181.31,181.29,5.5148]
[1755695321746,0.24,181.31,181.25,3.12]
[1755695322244,5.7544,181.31,181.25,3.12]
[1755695322544,0.24,181.31,181.25,3.12]
[1755695324544,0.24,181.31,181.27,5.5153]
[1755695324745,0.24,181.31,181.27,8.6353]
[1755695325045,3.09399782,181.35,181.27,3.12]
[1755695325046,0.24,181.34,181.27,3.12]
[1755695325443,5.5145,181.31,181.27,3.12]
[1755695325846,0.24,181.34,181.27,3.12]
[1755695326047,0.24,181.31,181.23,3.12]
[1755695326545,5.5151,181.29,181.24,5.5162]
[1755695326843,0.24,181.29,181.24,8.6362]
[1755695327051,5.7552,181.28,181.24,3.12]
[1755695327245,3.09399782,181.32,181.24,3.12]
[1755695327445,0.24,181.27,181.24,3.12]
[1755695328640,0.24,181.27,181.2,3.12]
[1755695329038,5.7555,181.27,181.19,136.42]
[1755695329249,3.33399782,181.32,181.2,3.12]
[1755695329648,3.09399782,181.32,181.2,3.12]
[1755695329845,3.33399782,181.29,181.2,3.12]
[1755695330045,5.5165,181.24,181.2,3.12]
[1755695330246,370.62,181.36,181.16,3.12]
[1755695330247,0.24,181.23,181.16,3.12]
[1755695330849,3.09399782,181.23,181.13,0.96041066]
[1755695331054,0.24,181.22,181.14,3.12]
[1755695331942,3.09399782,181.24,181.14,3.12]
[1755695332548,3.09399782,181.24,181.17,3.12]
[1755695332943,5.5171,181.22,181.18,5.5181]
[1755695333152,0.24,181.21,181.17,3.12]
[1755695333551,0.24,181.21,181.18,5.5182]
[1755695333752,0.24,181.24,181.18,3.12]
[1755695334053,0.24,181.24,181.18,8.6382]
[1755695334651,5.7566,181.24,181.19,5.5179]
[1755695334854,5.7566,181.24,181.19,8.6379]
[1755695335149,5.7568,181.23,181.11,3.12]
[1755695335652,0.24,181.23,181.18,5.518]
[1755695335854,0.24,181.23,181.19,2.94]
[1755695337555,3.09399782,181.25,181.14,2.94]
[1755695337749,3.09399782,181.27,181.14,2.94]
[1755695337949,8.60969782,181.27,181.21,5.5171]
[1755695338151,5.5157,181.27,181.21,2.94]
[1755695338851,3.09399782,181.29,181.17,2.94]
[1755695339051,0.24,181.25,181.17,2.94]
[1755695339251,0.24,181.22,181.17,2.94]
[1755695339446,0.24,181.21,181.17,2.94]
[1755695339654,0.24,181.21,181.11,2.94]
[1755695339854,5.5174,181.21,181.12,2.94]
[1755695340055,0.24,181.22,181.12,2.94]
[1755695340453,5.5178,181.2,181.14,5.5192]
[1755695340657,0.24,181.22,181.13,2.94]
[1755695341051,5.5176,181.21,181.15,8.4591]
[1755695341860,5.5177,181.2,181.15,2.94]
[1755695342058,5.7577,181.2,181.16,2.94]
[1755695342759,5.5175,181.21,181.16,2.94]
[1755695342962,3.33399782,181.23,181.17,2.94]
[1755695343562,3.33399782,181.23,181.16,2.94]
[1755695344058,5.5172,181.22,181.16,8.4587]
[1755695344262,3.33399782,181.23,181.16,8.4587]
[1755695344859,5.7577,181.2,181.16,2.94]
[1755695345064,0.24,181.2,181.16,2.94]
[1755695345665,0.24,181.21,181.11,2.94]
[1755695346462,5.5184,181.18,181.12,5.52]
[1755695346663,5.5184,181.18,181.11,2.94]
[1755695347666,5.5181,181.19,181.13,5.5196]
[1755695347873,5.7581,181.19,181.15,2.94]
[1755695348563,5.7581,181.19,181.14,5.5195]
[1755695348763,5.7581,181.19,181.16,2.94]
[1755695349169,0.24,181.17,181.11,2.94]
[1755695349370,5.5185,181.18,181.13,5.5196]
[1755695349668,5.5187,181.17,181.14,2.94]
[1755695349868,5.7587,181.17,181.14,2.94]
[1755695350269,5.5184,181.18,181.14,2.94]
[1755695350471,5.7584,181.18,181.14,2.94]
[1755695350665,0.24,181.18,181.14,2.94]
[1755695351062,3.09399782,181.22,181.15,2.94]
[1755695351268,0.24,181.21,181.15,2.94]
[1755695351664,3.09399782,181.22,181.15,2.94]
[1755695351869,3.09399782,181.23,181.15,2.94]
[1755695352373,0.24,181.22,181.15,2.94]
[1755695352574,5.5175,181.21,181.16,5.5188]
[1755695352774,0.24,181.21,181.18,2.94]
[1755695352975,3.09399782,181.23,181.11,3.09399782]
[1755695352976,0.24,181.22,181.14,2.94]
[1755695353477,0.24,181.19,181.11,2.94]
[1755695353678,0.24,181.17,181.12,8.46]
[1755695353973,0.24,181.17,181.12,5.52]
[1755695354172,5.7588,181.17,181.13,8.4598]
[1755695354480,3.33399782,181.2,181.14,2.94]
[1755695354778,5.7581,181.19,181.15,2.94]
[1755695355078,0.24,181.18,181.15,2.94]
[1755695355272,5.7584,181.18,181.15,2.94]
[1755695355476,5.5184,181.18,181.11,2.94]
[1755695355779,0.24,181.18,181.11,2.94]
[1755695356081,0.24,181.19,181.11,2.94]
[1755695356674,0.24,181.19,181.09,2.94]